fUST/lending_fUST_20240331
["ID","MTS","AMOUNT","RATE_DAILY","PERIOD"]
[321066691,1711857041409,-503.0,0.000384,30]
[321066692,1711857041418,-646.0,0.000384,2]
[321066693,1711857041427,-170.527934,0.00038461,2]
[321066694,1711857041436,-170.527934,0.00038461,2]
[321066695,1711857041445,-153.0,0.00038603,2]
[321066696,1711857041454,-500.0,0.00038629,4]
[321066697,1711857041463,-513.96234467,0.00038629,4]
[321066698,1711857041473,-50541.15569367,0.0003863,3]
[321066699,1711857041482,-500.0,0.0003863,4]
[321066700,1711857041491,-692.74,0.0003863,4]
[321066701,1711857041501,-773.61,0.0003863,2]
[321066702,1711857041510,-500.0,0.0003863,4]
[321066703,1711857041520,-500.0,0.0003863,4]
[321066704,1711857041529,-500.0,0.0003863,4]
[321066705,1711857041538,-500.0,0.0003863,4]
[321066706,1711857041550,-500.0,0.0003863,4]
[321066707,1711857041559,-500.0,0.0003863,4]
[321066709,1711857041569,-500.0,0.0003863,4]
[321066710,1711857041578,-500.0,0.0003863,4]
[321066712,1711857041587,-500.0,0.0003863,4]
[321066714,1711857041596,-500.0,0.0003863,4]
[321066716,1711857041605,-500.0,0.0003863,4]
[321066718,1711857041614,-836.0,0.0003863,4]
[321066720,1711857041625,-500.0,0.0003863,4]
[321066722,1711857041634,-734.5,0.0003863,4]
[321066724,1711857041643,-1296.3,0.0003863,4]
[321066726,1711857041652,-500.0,0.0003863,4]
[321066728,1711857041661,-4028.12,0.0003863,4]
[321066730,1711857041671,-1063.99,0.0003863,4]
[321066732,1711857041680,-926.46,0.0003863,4]
[321066734,1711857041689,-11940.12,0.0003863,4]
[321066736,1711857041698,-1070.18,0.0003863,4]
[321066738,1711857041707,-500.0,0.0003863,4]
[321066740,1711857041716,-1039.65,0.0003863,4]
[321066742,1711857041726,-3295.16,0.0003863,4]
[321066744,1711857041735,-500.0,0.0003863,4]
[321066746,1711857041744,-500.0,0.0003863,4]
[321066748,1711857041753,-170.527934,0.0003863,2]
[321066750,1711857041762,-170.527934,0.0003863,2]
[321066751,1711857041771,-170.527934,0.0003863,2]
[321066753,1711857041781,-170.527934,0.0003863,2]
[321066755,1711857041790,-170.527934,0.0003863,2]
[321066757,1711857041799,-170.527934,0.0003863,2]
[321066759,1711857041808,-170.527934,0.0003863,2]
[321066761,1711857041818,-170.527934,0.0003863,2]
[321066763,1711857041827,-500.0,0.0003863,4]
[321066765,1711857041836,-170.527934,0.0003863,2]
[321066767,1711857041846,-170.527934,0.0003863,2]
[321066769,1711857041855,-935.65,0.0003863,4]
[321066771,1711857041865,-3017.96,0.0003863,4]
[321066773,1711857041874,-500.0,0.0003863,4]
[321066775,1711857041883,-500.0,0.0003863,4]
[321066777,1711857041892,-1115.44,0.0003863,4]
[321066779,1711857041902,-500.0,0.0003863,2]
[321066781,1711857041911,-819.32,0.0003863,4]
[321066783,1711857041921,-500.0,0.0003863,4]
[321066785,1711857041930,-157.41189844,0.0003863,4]
[321066787,1711857041939,-500.0,0.0003863,4]
[321066789,1711857041948,-6037.98,0.0003863,4]
[321066791,1711857041958,-500.0,0.0003863,4]
[321066793,1711857041967,-2385.81,0.0003863,4]
[321066795,1711857041976,-2195.41,0.0003863,4]
[321066797,1711857041985,-500.0,0.0003863,4]
[321066799,1711857041994,-500.0,0.0003863,4]
[321066801,1711857042003,-500.0,0.0003863,4]
[321066803,1711857042012,-1128.09,0.0003863,4]
[321066805,1711857042022,-500.0,0.0003863,4]
[321066807,1711857042031,-1000.0,0.0003863,7]
[321066809,1711857042040,-569.68,0.0003863,4]
[321066811,1711857042050,-1019.47,0.0003863,4]
[321066813,1711857042059,-500.0,0.0003863,4]
[321066815,1711857042069,-500.0,0.0003863,4]
[321066817,1711857042078,-168.18942141,0.0003863,4]
[321066819,1711857042088,-500.0,0.0003863,4]
[321066821,1711857042097,-500.0,0.0003863,4]
[321066823,1711857042107,-500.0,0.0003863,4]
[321066825,1711857042117,-17775.8,0.0003863,4]
[321066827,1711857042126,-500.0,0.0003863,4]
[321066829,1711857042135,-500.0,0.00038904,4]
[321066831,1711857042144,-500.0,0.00038904,4]
[321066833,1711857042153,-692.74,0.00038904,4]
[321066835,1711857042162,-773.61,0.00038904,2]
[321066837,1711857042171,-500.0,0.00038904,4]
[321066839,1711857042181,-500.0,0.00038904,4]
[321066841,1711857042190,-500.0,0.00038904,4]
[321066843,1711857042199,-500.0,0.00038904,4]
[321066845,1711857042209,-500.0,0.00038904,4]
[321066846,1711857042219,-500.0,0.00038904,4]
[321066848,1711857042229,-492.46823952,0.00038904,4]
[321066850,1711857042239,-500.0,0.00038904,4]
[321066852,1711857042249,-500.0,0.00038904,4]
[321066854,1711857042258,-500.0,0.00038904,4]
[321066856,1711857042269,-500.0,0.00038904,4]
[321066858,1711857042279,-836.0,0.00038904,4]
[321066860,1711857042288,-373.86223997,0.00038904,4]
[321066862,1711857042298,-734.5,0.00038904,4]
[321066864,1711857042308,-1296.3,0.00038904,4]
[321066866,1711857042317,-500.0,0.00038904,4]
[321066868,1711857042328,-4028.12,0.00038904,4]
[321066870,1711857042337,-1063.99,0.00038904,4]
[321066872,1711857042346,-926.46,0.00038904,4]
[321066874,1711857042356,-11940.12,0.00038904,4]
[321066876,1711857042366,-1070.18,0.00038904,4]
[321066879,1711857042377,-500.0,0.00038904,4]
[321066880,1711857042386,-1039.65,0.00038904,4]
[321066882,1711857042396,-3295.16,0.00038904,4]
[321066884,1711857042405,-500.0,0.00038904,4]
[321066886,1711857042415,-500.0,0.00038904,4]
[321066888,1711857042424,-170.527934,0.00038904,2]
[321066890,1711857042434,-170.527934,0.00038904,2]
[321066892,1711857042443,-471.34460665,0.00038904,4]
[321066894,1711857042452,-170.527934,0.00038904,2]
[321066896,1711857042461,-170.527935,0.00038904,2]
[321066898,1711857042470,-935.65,0.00038904,4]
[321066900,1711857042479,-3017.96,0.00038904,4]
[321066902,1711857042488,-376.66990378,0.00038904,4]
[321066904,1711857042497,-500.0,0.00038904,4]
[321066906,1711857042507,-1115.44,0.00038904,4]
[321066908,1711857042516,-500.0,0.00038904,2]
[321066910,1711857042526,-819.32,0.00038904,4]
[321066912,1711857042535,-500.0,0.00038904,4]
[321066914,1711857042546,-518.44056491,0.00038904,4]
[321066916,1711857042555,-6037.98,0.00038904,4]
[321066918,1711857042564,-500.0,0.00038904,4]
[321066920,1711857042573,-2385.81,0.00038904,4]
[321066922,1711857042583,-2195.41,0.00038904,4]
[321066924,1711857042592,-500.0,0.00038904,4]
[321066926,1711857042601,-500.0,0.00038904,4]
[321066928,1711857042611,-1128.09,0.00038904,4]
[321066930,1711857042620,-500.0,0.00038904,4]
[321066932,1711857042630,-1000.0,0.00038904,7]
[321066935,1711857042640,-569.68,0.00038904,4]
[321066938,1711857042649,-1019.47,0.00038904,4]
[321066940,1711857042658,-500.0,0.00038904,4]
[321066958,1711857042742,-500.0,0.00038904,4]
[321066960,1711857042752,-500.0,0.00038904,4]
[321066962,1711857042761,-500.0,0.00038904,4]
[321066964,1711857042771,-500.0,0.00038904,4]
[321066966,1711857042780,-14727.51462151,0.00038904,4]
[321066994,1711857043840,-369.02794362,0.00038356,4]
[321066995,1711857043850,-3048.28537849,0.00038904,4]
[321066996,1711857043860,-252.46676483,0.00038989,2]
[321066997,1711857043869,-241.41815106,0.00038989,4]
[321066998,1711857043879,-1869.63306651,0.00038995,4]
[321067000,1711857043889,-6614.72406659,0.00039,7]
[321067003,1711857043901,-783.8462076,0.00039,7]
[321067077,1711857046426,-446.07512858,0.00038356,4]
[321067078,1711857064612,328.55537245,0.00036804,2]
[321067080,1711857934256,-456.30104297,0.00036804,4]
[321067081,1711857934275,-204.32799571,0.00036804,2]
[321067082,1711857968617,150.92758307,0.00034704,2]
[321067083,1711858027098,-197.85953,0.00036947,120]
[321067084,1711858027118,-403.185878,0.00036985,2]
[321067085,1711858027138,-1.70762856,0.00037045,2]
[321067086,1711858032119,-616.45536398,0.00037045,2]
[321067087,1711858035098,-267.58475925,0.00037045,2]
[321067088,1711858042091,-500.0,0.00037045,2]
[321067089,1711858054095,-666.84599351,0.00037045,2]
[321067105,1711858232552,-1483.2376238,0.00037317,2]
[321067106,1711858232562,-3087.17241043,0.00037323,2]
[321067135,1711858238563,-1128.85984077,0.00037323,2]
[321067136,1711858238573,-197.85953,0.00037323,120]
[321067137,1711858238582,-187.70857331,0.00037676,2]
[321067138,1711858238591,-163.5109555,0.00038256,8]
[321067139,1711858238601,-320.16997139,0.0003831,120]
[321067146,1711858240641,-649.77639748,0.0003831,120]
[321067147,1711858240650,-500.0,0.00038355,15]
[321067148,1711858240660,-327.21261507,0.00038355,15]
[321067149,1711858240669,-302.0,0.00038355,3]
[321067150,1711858240677,-500.0,0.00038356,4]
[321067151,1711858240686,-467.4586323,0.00038356,4]
[321067152,1711858240694,-500.0,0.00038356,4]
[321067153,1711858240703,-500.0,0.00038356,4]
[321067154,1711858240712,-264.92219707,0.00038356,4]
[321067155,1711858240721,-122.88395818,0.00038356,4]
[321067171,1711858243686,-377.11604182,0.00038356,4]
[321067172,1711858243695,-500.0,0.00038356,4]
[321067173,1711858243705,-185.94693996,0.00038356,4]
[321067174,1711858243714,-195.12533737,0.00038356,4]
[321067175,1711858243726,-304.87466263,0.00038356,4]
[321067176,1711858243735,-500.0,0.00038356,4]
[321067177,1711858243744,-500.0,0.00038356,4]
[321067178,1711858243753,-731.5,0.00038356,4]
[321067179,1711858243762,-180.5354424,0.00038356,4]
[321067180,1711858243771,-437.51789497,0.00038356,4]
[321067181,1711858243783,-62.48210503,0.00038356,4]
[321067182,1711858243792,-509.48703964,0.00038356,4]
[321067183,1711858243802,-702.08,0.00038356,4]
[321067184,1711858243811,-1134.26,0.00038356,4]
[321067185,1711858243820,-500.0,0.00038356,4]
[321067186,1711858243830,-500.0,0.00038356,4]
[321067187,1711858243839,-517.21736791,0.00038356,4]
[321067188,1711858243848,-589.34132669,0.00038356,4]
[321067189,1711858243859,-968.98,0.00038356,4]
[321067190,1711858243869,-909.69,0.00038356,4]
[321067192,1711858243878,-500.0,0.00038356,4]
[321067194,1711858243889,-810.66,0.00038356,4]
[321067196,1711858243898,-500.0,0.00038356,4]
[321067197,1711858243906,-500.0,0.00038356,4]
[321067198,1711858243915,-2747.81769126,0.00038356,4]
[321067200,1711858243927,-402.86338597,0.00038356,4]
[321067250,1711858269743,483.40337718,0.00036256,2]
[321067251,1711858511841,-163.5109555,0.00038256,8]
[321067252,1711858511869,-500.0,0.00038355,15]
[321067253,1711858511891,-500.0,0.00038355,15]
[321067254,1711858511912,-500.0,0.00038355,15]
[321067255,1711858511933,-500.0,0.00038355,15]
[321067256,1711858511957,-500.0,0.00038355,15]
[321067257,1711858511982,-324.23799673,0.00038355,15]
[321067258,1711858512003,-500.0,0.00038355,15]
[321067259,1711858512025,-500.0,0.00038355,15]
[321067260,1711858512050,-500.0,0.00038355,15]
[321067261,1711858512074,-500.0,0.00038355,15]
[321067262,1711858512096,-500.0,0.00038355,15]
[321067263,1711858512118,-1000.0,0.00038356,7]
[321067265,1711859146220,-322.26891812,0.00036256,2]
[321067266,1711859146242,-909.01203011,0.00036983,2]
[321067267,1711859240096,-214.84594542,0.00036256,2]
[321067268,1711859240117,-836.58812473,0.00036983,2]
[321067269,1711859244121,-1316.33234441,0.00036983,2]
[321067270,1711859245084,-663.54127404,0.00036983,2]
[321067271,1711859253096,-790.34685871,0.00036983,2]
[321067272,1711859253115,-4.13145974,0.00037001,2]
[321067273,1711859253141,-858.05231426,0.00037001,2]
[321067274,1711859253161,-312.36491256,0.00037009,2]
[321067307,1711859438768,-344.11444634,0.00037009,2]
[321067308,1711859438778,-172.68755366,0.00037081,2]
[321067309,1711859438789,-6.42307334,0.00037081,2]
[321067310,1711859438798,-197.85953,0.00037104,120]
[321067311,1711859438807,-192.244863,0.00037236,2]
[321067312,1711859438817,-235.0499572,0.00037613,2]
[321067313,1711859438826,-500.0,0.00038,30]
[321067314,1711859438835,-643.51820812,0.00038255,2]
[321067315,1711859438844,-216.0,0.00038354,3]
[321067316,1711859438853,-500.0,0.00038355,15]
[321067317,1711859438861,-457.21694951,0.00038355,15]
[321067364,1711859440793,-42.78305049,0.00038355,15]
[321067366,1711859440802,-500.0,0.00038355,15]
[321067368,1711859440811,-500.0,0.00038355,15]
[321067370,1711859440821,-500.0,0.00038355,15]
[321067372,1711859440830,-500.0,0.00038355,15]
[321067373,1711859440840,-500.0,0.00038355,15]
[321067375,1711859440849,-500.0,0.00038355,15]
[321067377,1711859440858,-324.23799673,0.00038355,15]
[321067385,1711859440958,-500.0,0.00038355,15]
[321067386,1711859440967,-500.0,0.00038355,15]
[321067387,1711859440977,-500.0,0.00038356,4]
[321067388,1711859440985,-500.0,0.00038356,4]
[321067389,1711859440995,-1000.0,0.00038356,7]
[321067390,1711859441005,-500.0,0.00038356,4]
[321067391,1711859441014,-500.0,0.00038356,4]
[321067392,1711859441023,-284.29562177,0.00038356,4]
[321067393,1711859441032,-592.30254535,0.00038356,4]
[321067394,1711859441043,-500.0,0.00038356,4]
[321067395,1711859441053,-500.0,0.00038356,4]
[321067396,1711859441062,-500.0,0.00038356,4]
[321067397,1711859441072,-500.0,0.00038356,4]
[321067398,1711859441081,-500.0,0.00038356,4]
[321067399,1711859441091,-500.0,0.00038356,4]
[321067400,1711859441100,-500.0,0.00038356,4]
[321067401,1711859441109,-500.0,0.00038356,4]
[321067402,1711859441119,-500.0,0.00038356,4]
[321067403,1711859441128,-685.92,0.00038356,4]
[321067404,1711859441138,-500.0,0.00038356,4]
[321067405,1711859441147,-697.75,0.00038356,2]
[321067406,1711859441156,-504.48236588,0.00038356,4]
[321067407,1711859441166,-500.0,0.00038356,4]
[321067408,1711859441175,-500.0,0.00038356,4]
[321067409,1711859441184,-701.02,0.00038356,4]
[321067410,1711859441193,-502.5402948,0.00038356,4]
[321067411,1711859441202,-500.81149194,0.00038356,4]
[321067412,1711859441211,-500.0,0.00038356,4]
[321067413,1711859441220,-672.83,0.00038356,4]
[321067414,1711859441233,-1184.86,0.00038356,4]
[321067415,1711859441242,-928.61,0.00038356,4]
[321067416,1711859441253,-500.0,0.00038356,4]
[321067417,1711859441262,-500.0,0.00038356,4]
[321067418,1711859441273,-14994.05615338,0.00038356,4]
[321067419,1711859441344,-559.77384662,0.00038356,4]
[321067420,1711859441353,-542.3914918,0.00038356,4]
[321067421,1711859441366,-335.1785082,0.00038356,4]
[321067422,1711859441377,-500.0,0.00038356,4]
[321067423,1711859441387,-500.0,0.00038356,4]
[321067424,1711859441397,-500.0,0.00038356,4]
[321067425,1711859441406,-263.37558199,0.00038356,4]
[321067426,1711859441419,-238.4674793,0.00038356,4]
[321067427,1711859441428,-500.0,0.00038356,4]
[321067428,1711859441437,-10506.63,0.00038356,4]
[321067429,1711859441447,-950.41,0.00038356,4]
[321067430,1711859441456,-500.0,0.00038356,4]
[321067431,1711859441466,-500.0,0.00038356,4]
[321067432,1711859441477,-3524.6,0.00038356,4]
[321067433,1711859441488,-500.0,0.00038356,4]
[321067434,1711859441499,-500.0,0.00038356,4]
[321067435,1711859441509,-500.0,0.00038356,4]
[321067436,1711859441519,-500.0,0.00038356,4]
[321067437,1711859441530,-2883.27,0.00038356,4]
[321067438,1711859441541,-500.0,0.00038356,4]
[321067439,1711859441550,-500.0,0.00038356,4]
[321067440,1711859441560,-818.7,0.00038356,4]
[321067441,1711859441570,-936.4,0.00038356,4]
[321067442,1711859441579,-2911.31,0.00038356,4]
[321067443,1711859441590,-530.2949951,0.00038356,4]
[321067444,1711859441600,-500.0,0.00038356,2]
[321067445,1711859441610,-500.0,0.00038356,4]
[321067446,1711859441620,-716.91,0.00038356,4]
[321067447,1711859441629,-1301.02,0.00038356,4]
[321067448,1711859441638,-500.0,0.00038356,4]
[321067449,1711859441647,-504.01169563,0.00038356,4]
[321067450,1711859441657,-5541.87,0.00038356,4]
[321067451,1711859441668,-500.0,0.00038356,4]
[321067452,1711859441677,-2184.91,0.00038356,4]
[321067453,1711859441687,-500.0,0.00038356,4]
[321067454,1711859441697,-1920.98,0.00038356,4]
[321067455,1711859441706,-508.17306347,0.00038356,4]
[321067456,1711859441716,-500.0,0.00038356,4]
[321067457,1711859441727,-1120.15,0.00038356,4]
[321067458,1711859441737,-564.42428806,0.00038356,4]
[321067459,1711859441746,-500.0,0.00038356,4]
[321067460,1711859441756,-932.86,0.00038356,4]
[321067461,1711859441766,-500.0,0.00038356,4]
[321067462,1711859441777,-500.0,0.00038356,4]
[321067463,1711859441787,-153.0,0.000384,2]
[321067464,1711859441796,-308.9354033,0.000384,2]
[321067465,1711859441805,-459.9697207,0.0003853,2]
[321067466,1711859441815,-1000.0,0.0003853,2]
[321067467,1711859441824,-298.0,0.0003857,17]
[321067468,1711859441833,-500.0,0.0003863,4]
[321067469,1711859441842,-1000.0,0.0003863,7]
[321067470,1711859441851,-500.0,0.0003863,4]
[321067471,1711859441862,-500.0,0.0003863,4]
[321067472,1711859441872,-500.0,0.0003863,4]
[321067473,1711859441882,-542.79036264,0.0003863,4]
[321067474,1711859441892,-500.0,0.0003863,4]
[321067475,1711859441902,-685.92,0.0003863,4]
[321067476,1711859441912,-697.75,0.0003863,2]
[321067477,1711859441923,-500.0,0.0003863,4]
[321067478,1711859441932,-500.0,0.0003863,4]
[321067479,1711859441943,-701.02,0.0003863,4]
[321067480,1711859441952,-500.0,0.0003863,4]
[321067481,1711859441961,-672.83,0.0003863,4]
[321067482,1711859441970,-1184.86,0.0003863,4]
[321067483,1711859441981,-928.61,0.0003863,4]
[321067484,1711859441991,-500.0,0.0003863,4]
[321067485,1711859442000,-15553.83,0.0003863,4]
[321067486,1711859442009,-877.57,0.0003863,4]
[321067487,1711859442018,-504.97734848,0.0003863,4]
[321067488,1711859442027,-500.0,0.0003863,4]
[321067489,1711859442037,-500.0,0.0003863,4]
[321067490,1711859442046,-10506.63,0.0003863,4]
[321067491,1711859442055,-503.37440373,0.0003863,4]
[321067492,1711859442064,-950.41,0.0003863,4]
[321067493,1711859442073,-500.0,0.0003863,4]
[321067494,1711859442082,-806.43635644,0.0003863,4]
[321067559,1711859443945,-2718.16364356,0.0003863,4]
[321067561,1711859443956,-500.0,0.0003863,4]
[321067563,1711859443965,-285.31495113,0.0003863,4]
[321067652,1711859475049,593.93495921,0.0003653,2]
[321067653,1711859567051,400.0,0.00036165,2]
[321067654,1711859808319,-178.78658384,0.00036165,2]
[321067655,1711860318868,150.21341616,0.00036165,2]
[321067656,1711860338109,-6.04890673,0.00036165,2]
[321067657,1711860338129,-395.95663947,0.0003653,2]
[321067658,1711860338148,-155.40147652,0.00037009,2]
[321067659,1711860338168,-701.30807651,0.0003718,2]
[321067660,1711860378809,263.97109298,0.0003508,2]
[321067661,1711860430647,-179.110627,0.00037051,2]
[321067662,1711860430669,-1145.02739947,0.0003718,2]
[321067663,1711860435122,-1123.74787663,0.0003718,2]
[321067664,1711860447124,-479.46590529,0.0003718,2]
[321067665,1711860447144,-212.779371,0.00037307,2]
[321067666,1711860447163,-406.11289401,0.00038155,2]
[321067667,1711860453186,-668.74504079,0.00038155,2]
[321067704,1711860643127,-704.23463566,0.00038155,2]
[321067705,1711860643136,-150.0,0.00038249,2]
[321067706,1711860643145,-201.46052878,0.00038346,2]
[321067707,1711860643155,-176.0,0.00038355,5]
[321067708,1711860643164,-222.46483556,0.00038355,15]
[321067709,1711860680118,285.49918614,0.00036055,2]
[321067713,1711860874014,2508.56745388,0.00021,2]
[321067715,1711860994891,5000.0,0.00036,2]
[321067716,1711861003356,2403.2432845,0.00036,2]
[321067717,1711861544134,-456.30104297,0.00036,4]
[321067718,1711861544154,-190.33279076,0.00036055,2]
[321067719,1711861544174,-382.6943913,0.00036898,4]
[321067720,1711861544194,-161.52605772,0.00036975,8]
[321067721,1711861544214,-100.08512373,0.00036975,2]
[321067722,1711861584156,194.99785908,0.000339,2]
[321067723,1711861630082,-212.779371,0.00036847,2]
[321067724,1711861630104,-267.89065283,0.00036975,2]
[321067725,1711861630124,-651.04526375,0.00037,30]
[321067726,1711861630145,-27.82587235,0.00037056,3]
[321067727,1711861646122,-1330.48239058,0.00037042,2]
[321067728,1711861652098,-964.24731435,0.00037042,2]
[321067766,1711861832041,-372.0,0.00037041,3]
[321067768,1711861832050,-22595.27029507,0.00037042,2]
[321067770,1711861832059,-187.445548,0.00037075,2]
[321067772,1711861832069,-367.97577656,0.00037364,2]
[321067774,1711861832078,-367.97577656,0.00037753,2]
[321067776,1711861832087,-152.094495,0.00037857,2]
[321067778,1711861832096,-176.869244,0.00037857,2]
[321067780,1711861832105,-367.97577656,0.00038141,2]
[321067782,1711861832114,-506.0,0.00038156,2]
[321067784,1711861832123,-202.21811,0.00038238,2]
[321067786,1711861832132,-202.21811,0.00038238,2]
[321067788,1711861832142,-153.0,0.00038238,2]
[321067790,1711861832151,-202.21811,0.00038238,2]
[321067792,1711861832160,-500.0,0.00038355,15]
[321067794,1711861832169,-500.0,0.00038355,15]
[321067796,1711861832178,-500.0,0.00038355,15]
[321067798,1711861832187,-175.02079629,0.00038355,15]
[321067800,1711861832196,-500.12740632,0.00038356,4]
[321067802,1711861832207,-572.20843463,0.00038356,4]
[321067804,1711861832216,-500.0,0.00038356,4]
[321067806,1711861832225,-600.10452354,0.00038356,4]
[321067808,1711861832234,-1000.0,0.00038356,7]
[321067810,1711861832243,-500.0,0.00038356,4]
[321067812,1711861832252,-500.0,0.00038356,4]
[321067814,1711861832261,-500.0,0.00038356,4]
[321067816,1711861832270,-500.0,0.00038356,4]
[321067818,1711861832280,-500.0,0.00038356,4]
[321067820,1711861832290,-500.0,0.00038356,4]
[321067822,1711861832298,-151.0,0.00038356,4]
[321067824,1711861832307,-503.44914772,0.00038356,4]
[321067826,1711861832316,-500.0,0.00038356,4]
[321067828,1711861832325,-701.86,0.00038356,4]
[321067830,1711861832334,-500.0,0.00038356,4]
[321067832,1711861832343,-500.0,0.00038356,4]
[321067834,1711861832352,-670.61,0.00038356,4]
[321067836,1711861832361,-1171.8,0.00038356,4]
[321067838,1711861832370,-500.0,0.00038356,4]
[321067840,1711861832379,-500.0,0.00038356,4]
[321067842,1711861832388,-500.0,0.00038356,4]
[321067844,1711861832397,-3438.69,0.00038356,4]
[321067847,1711861832406,-627.2957788,0.00038356,4]
[321067848,1711861832415,-510.17694248,0.00038356,4]
[321067850,1711861832425,-904.11,0.00038356,4]
[321067852,1711861832434,-925.77,0.00038356,4]
[321067854,1711861832444,-193.65747266,0.00038356,4]
[321067856,1711861832453,-500.0,0.00038356,4]
[321067858,1711861832463,-804.44,0.00038356,4]
[321067860,1711861832472,-500.0,0.00038356,4]
[321067862,1711861832482,-580.92088582,0.00038356,4]
[321067865,1711861832491,-500.0,0.00038356,4]
[321067866,1711861832501,-500.0,0.00038356,4]
[321067868,1711861832511,-9640.03,0.00038356,4]
[321067870,1711861832520,-500.0,0.00038356,4]
[321067872,1711861832529,-897.39,0.00038356,4]
[321067874,1711861832538,-2763.13,0.00038356,4]
[321067876,1711861832547,-151.0,0.00038356,2]
[321067879,1711861832558,-500.0072567,0.00038356,4]
[321067881,1711861832568,-784.58,0.00038356,4]
[321067882,1711861832577,-500.0,0.00038356,2]
[321067884,1711861832586,-500.0,0.00038356,4]
[321067886,1711861832597,-500.0,0.00038356,4]
[321067888,1711861832606,-2790.0,0.00038356,4]
[321067890,1711861832615,-687.04,0.00038356,4]
[321067892,1711861832625,-1246.81,0.00038356,4]
[321067894,1711861832634,-5310.95,0.00038356,4]
[321067896,1711861832643,-500.0,0.00038356,4]
[321067898,1711861832652,-2093.88,0.00038356,4]
[321067900,1711861832662,-628.76,0.00038356,4]
[321067902,1711861832672,-639.6,0.00038356,2]
[321067904,1711861832682,-1073.47,0.00038356,4]
[321067906,1711861832691,-893.99,0.00038356,4]
[321067908,1711861832702,-500.0,0.00038356,4]
[321067910,1711861832711,-1965.82,0.00038356,4]
[321067912,1711861832721,-568.75068452,0.00038356,4]
[321067914,1711861832730,-500.0,0.00038356,4]
[321067916,1711861832739,-500.0,0.00038356,4]
[321067919,1711861832749,-502.51,0.00038356,4]
[321067921,1711861832758,-264.37835351,0.00038356,4]
[321067923,1711861832768,-500.0,0.00038356,4]
[321067924,1711861832777,-573.66611777,0.00038356,4]
[321068501,1711861846199,-14758.17388223,0.00038356,4]
[321068502,1711861846208,-477.28878406,0.00038356,7]
[321068503,1711861846217,-3295.41,0.00038356,4]
[321068504,1711861846226,-500.0,0.00038356,4]
[321068505,1711861846235,-500.0,0.0003863,4]
[321068506,1711861846245,-500.0,0.0003863,4]
[321068507,1711861846254,-500.0,0.0003863,4]
[321068508,1711861846263,-500.0,0.0003863,4]
[321068509,1711861846272,-500.0,0.0003863,4]
[321068510,1711861846281,-500.0,0.0003863,4]
[321068511,1711861846290,-701.86,0.0003863,4]
[321068512,1711861846299,-670.61,0.0003863,4]
[321068513,1711861846307,-1171.8,0.0003863,4]
[321068514,1711861846316,-500.0,0.0003863,4]
[321068515,1711861846325,-130.85733371,0.0003863,4]
[321068516,1711861885475,291.13303178,0.00036256,2]
[321068517,1711862733158,-244.08868785,0.00036256,2]
[321068518,1711862733177,-179.110627,0.00037039,2]
[321068519,1711862733197,-1346.71291677,0.00037198,2]
[321068520,1711862789312,270.14876461,0.00035098,2]
[321068521,1711862839100,-506.43340663,0.00037198,2]
[321068522,1711862839123,-1130.31525722,0.00037313,2]
[321068523,1711862846084,-304.11549558,0.00037313,2]
[321068524,1711862846104,-183.98788828,0.00038256,2]
[321068525,1711862846124,-161.52605771,0.00038256,8]
[321068526,1711862846143,-400.0,0.000383,2]